fUST/lending_fUST_20250427
["ID","MTS","AMOUNT","RATE_DAILY","PERIOD"]
[359122581,1745718642636,-400.0,0.00016986,2]
[359122582,1745718642646,-400.0,0.00016986,2]
[359122583,1745718642655,-400.0,0.00016986,2]
[359122584,1745718642665,-536.93,0.00016986,2]
[359122585,1745718642675,-400.0,0.00016986,2]
[359122586,1745718642685,-400.0,0.00016986,2]
[359122587,1745718642694,-400.0,0.00016986,2]
[359122588,1745718642704,-220.74937834,0.00016986,2]
[359122589,1745718642713,-400.0,0.00016986,2]
[359122590,1745718642723,-400.0,0.00016986,2]
[359122591,1745718642732,-400.0,0.00016986,2]
[359122592,1745718642742,-400.0,0.00016986,2]
[359122593,1745718642751,-400.0,0.00016986,2]
[359122594,1745718642761,-400.0,0.00016986,2]
[359122595,1745718642771,-695.64,0.00016986,2]
[359122596,1745718642780,-400.0,0.00016986,2]
[359122597,1745718642789,-400.0,0.00016986,2]
[359122598,1745718642798,-400.0,0.00016986,2]
[359122600,1745718642808,-400.0,0.00016986,2]
[359122601,1745718642817,-400.0,0.00016986,2]
[359122603,1745718642828,-400.0,0.00016986,2]
[359122605,1745718642837,-400.0,0.00016986,2]
[359122606,1745718642847,-400.0,0.00016986,2]
[359122607,1745718642857,-400.0,0.00016986,2]
[359122608,1745718642867,-400.0,0.00016986,2]
[359122609,1745718642876,-400.0,0.00016986,2]
[359122610,1745718642889,-415.0,0.00016986,2]
[359122611,1745718642898,-400.0,0.00016986,2]
[359122612,1745718642908,-400.0,0.00016986,2]
[359122613,1745718642917,-866.54,0.00016986,2]
[359122615,1745718642928,-1548.88,0.00016986,2]
[359122617,1745718642937,-400.0,0.00016986,2]
[359122619,1745718642947,-400.0,0.00016986,2]
[359122620,1745718642956,-400.0,0.00016986,2]
[359122621,1745718642966,-400.0,0.00016986,2]
[359122622,1745718642978,-400.0,0.00016986,2]
[359122623,1745718642987,-400.0,0.00016986,2]
[359122627,1745718642997,-659.79,0.00016986,2]
[359122631,1745718643007,-160.0,0.00017119,2]
[359122634,1745718643017,-840.35238838,0.00017119,2]
[359122638,1745718643026,-160.0,0.00017119,2]
[359122641,1745718643036,-160.0,0.00017119,2]
[359122644,1745718643045,-160.0,0.00017119,2]
[359122647,1745718643055,-421.06755229,0.00017119,2]
[359122650,1745718643064,-12582.09293779,0.00017119,2]
[359122653,1745718643074,-160.0,0.0001712,2]
[359122656,1745718643084,-400.0,0.00017259,2]
[359122659,1745718643094,-400.0,0.0001726,2]
[359122662,1745718643103,-214.56232669,0.0001726,2]
[359122665,1745718643112,-400.0,0.0001726,2]
[359122668,1745718643123,-400.0,0.0001726,2]
[359122670,1745718643133,-205.38071071,0.0001726,2]
[359122673,1745718643144,-400.0,0.0001726,2]
[359122675,1745718643154,-323.26563273,0.0001726,2]
[359122677,1745718643164,-205.87187153,0.0001726,2]
[359122679,1745718643173,-205.05690836,0.0001726,2]
[359122682,1745718643183,-307.20172522,0.0001726,2]
[359122683,1745718643193,-480.98,0.0001726,2]
[359122684,1745718643202,-310.77877542,0.0001726,2]
[359122685,1745718643212,-400.0,0.0001726,2]
[359122686,1745718643221,-400.0,0.0001726,2]
[359122687,1745718643231,-317.27359084,0.0001726,2]
[359122688,1745718643241,-308.50843855,0.0001726,2]
[359122689,1745718643250,-400.0,0.0001726,2]
[359122690,1745718643260,-400.0,0.0001726,2]
[359122691,1745718643270,-355.06663733,0.0001726,2]
[359122692,1745718643279,-400.0,0.0001726,2]
[359122693,1745718643289,-400.0,0.0001726,2]
[359122694,1745718643298,-314.16431022,0.0001726,2]
[359122695,1745718643307,-310.80280227,0.0001726,2]
[359122697,1745718643446,-314.81706833,0.0001726,2]
[359122698,1745718643475,-400.0,0.0001726,2]
[359122699,1745718643485,-310.78888962,0.0001726,2]
[359122700,1745718643495,-330.61092806,0.0001726,2]
[359122701,1745718643505,-317.07937763,0.0001726,2]
[359122702,1745718643514,-314.09367529,0.0001726,2]
[359122703,1745718643524,-400.75498207,0.0001726,2]
[359122704,1745718643535,-400.0,0.0001726,2]
[359122705,1745718643544,-400.0,0.0001726,2]
[359122706,1745718643554,-400.0,0.0001726,2]
[359122707,1745718643564,-313.63131736,0.0001726,2]
[359122708,1745718643574,-322.80861109,0.0001726,2]
[359122709,1745718643584,-306.32008315,0.0001726,2]
[359122710,1745718643594,-310.22257775,0.0001726,2]
[359122711,1745718643604,-400.0,0.0001726,2]
[359122712,1745718643615,-400.0,0.0001726,2]
[359122713,1745718643624,-400.0,0.0001726,2]
[359122715,1745718643634,-309.44498158,0.0001726,2]
[359122717,1745718643643,-307.94440552,0.0001726,2]
[359122719,1745718643653,-400.0,0.0001726,2]
[359122720,1745718643663,-400.0,0.0001726,2]
[359122721,1745718643672,-400.0,0.0001726,2]
[359122722,1745718643682,-300.0,0.0001726,2]
[359122723,1745718643691,-400.0,0.0001726,2]
[359122724,1745718643702,-300.0,0.0001726,2]
[359122725,1745718643711,-400.0,0.0001726,2]
[359122726,1745718643722,-400.0,0.0001726,2]
[359122727,1745718643731,-435.03,0.0001726,2]
[359122728,1745718643741,-400.0,0.0001726,2]
[359122729,1745718643750,-308.86134913,0.0001726,2]
[359122730,1745718643760,-400.0,0.0001726,2]
[359122731,1745718643770,-400.0,0.0001726,2]
[359122732,1745718643779,-400.0,0.0001726,2]
[359122733,1745718643789,-623.28,0.0001726,2]
[359122734,1745718643798,-400.0,0.0001726,2]
[359122735,1745718643808,-400.0,0.0001726,2]
[359122736,1745718643818,-400.0,0.0001726,2]
[359122737,1745718643827,-308.14862889,0.0001726,2]
[359122738,1745718643837,-400.0,0.0001726,2]
[359122739,1745718643847,-400.0,0.0001726,2]
[359122740,1745718643857,-400.0,0.0001726,2]
[359122741,1745718643867,-400.0,0.0001726,2]
[359122742,1745718643877,-536.93,0.0001726,2]
[359122743,1745718643887,-217.22633561,0.0001726,2]
[359122744,1745718643899,-400.0,0.0001726,2]
[359122745,1745718643909,-400.0,0.0001726,2]
[359122746,1745718643919,-400.0,0.0001726,2]
[359122747,1745718643928,-400.0,0.0001726,2]
[359122748,1745718643938,-400.0,0.0001726,2]
[359122749,1745718643947,-400.0,0.0001726,2]
[359122750,1745718643957,-400.0,0.0001726,2]
[359122751,1745718643966,-400.0,0.0001726,2]
[359122752,1745718643975,-695.64,0.0001726,2]
[359122753,1745718643985,-494.81292298,0.0001726,2]
[359122754,1745718643995,-400.0,0.0001726,2]
[359122755,1745718644004,-400.0,0.0001726,2]
[359122756,1745718644014,-400.0,0.0001726,2]
[359122757,1745718644023,-307.12896223,0.0001726,2]
[359122758,1745718644035,-400.0,0.0001726,2]
[359122759,1745718644046,-400.0,0.0001726,2]
[359122760,1745718644056,-400.0,0.0001726,2]
[359122761,1745718644066,-400.0,0.0001726,2]
[359122762,1745718644076,-199.29,0.0001726,2]
[359122763,1745718644086,-400.0,0.0001726,2]
[359122764,1745718644096,-415.0,0.0001726,2]
[359122765,1745718644108,-400.0,0.0001726,2]
[359122766,1745718644117,-540.8895217,0.0001726,2]
[359122767,1745718644127,-866.54,0.0001726,2]
[359122768,1745718644137,-1548.88,0.0001726,2]
[359122769,1745718644147,-328.39074584,0.0001726,2]
[359122770,1745718644156,-400.0,0.0001726,2]
[359122771,1745718644166,-400.0,0.0001726,2]
[359122772,1745718644177,-360.0,0.0001726,2]
[359122773,1745718644186,-267.38194704,0.0001726,2]
[359122774,1745718644196,-300.0,0.0001726,2]
[359122775,1745718644206,-659.79,0.0001726,2]
[359122776,1745718644215,-500.0,0.00017303,2]
[359122777,1745718644224,-400.0,0.00017534,2]
[359122778,1745718644234,-214.12251514,0.00017534,2]
[359122779,1745718644244,-207.51884848,0.00017534,2]
[359122780,1745718644254,-219.30861891,0.00017534,2]
[359122781,1745718644264,-480.98,0.00017534,2]
[359122782,1745718644273,-400.0,0.00017534,2]
[359122783,1745718644282,-416.05130885,0.00017534,2]
[359122784,1745718644292,-400.0,0.00017534,2]
[359122785,1745718644301,-427.51683627,0.00017534,2]
[359122786,1745718644316,-416.90280593,0.00017534,2]
[359122787,1745718644327,-411.08142754,0.00017534,2]
[359122788,1745718644337,-400.0,0.00017534,2]
[359122789,1745718644346,-308.17537125,0.00017534,2]
[359122790,1745718644357,-415.16009149,0.00017534,2]
[359122791,1745718644367,-514.63679104,0.00017534,2]
[359122792,1745718644378,-325.72356626,0.00017534,2]
[359122793,1745718644388,-400.0,0.00017534,2]
[359122794,1745718644398,-400.0,0.00017534,2]
[359122795,1745718644409,-400.0,0.00017534,2]
[359122796,1745718644418,-400.0,0.00017534,2]
[359122797,1745718644429,-540.08190243,0.00017534,2]
[359122798,1745718644439,-400.0,0.00017534,2]
[359122799,1745718644449,-400.0,0.00017534,2]
[359122800,1745718644458,-400.0,0.00017534,2]
[359122801,1745718644468,-435.03,0.00017534,2]
[359122802,1745718644477,-400.0,0.00017534,2]
[359122803,1745718644486,-400.0,0.00017534,2]
[359122804,1745718644496,-400.0,0.00017534,2]
[359122805,1745718644506,-400.0,0.00017534,2]
[359122806,1745718644516,-623.28,0.00017534,2]
[359122807,1745718644526,-400.0,0.00017534,2]
[359122808,1745718644536,-400.0,0.00017534,2]
[359122809,1745718644546,-400.0,0.00017534,2]
[359122810,1745718644555,-400.0,0.00017534,2]
[359122811,1745718644565,-400.0,0.00017534,2]
[359122812,1745718644575,-400.0,0.00017534,2]
[359122813,1745718644585,-400.0,0.00017534,2]
[359122814,1745718644594,-536.93,0.00017534,2]
[359122815,1745718644605,-400.0,0.00017534,2]
[359122816,1745718644615,-400.0,0.00017534,2]
[359122817,1745718644625,-400.0,0.00017534,2]
[359122818,1745718644634,-400.0,0.00017534,2]
[359122819,1745718644644,-400.0,0.00017534,2]
[359122820,1745718644653,-400.0,0.00017534,2]
[359122821,1745718644663,-400.0,0.00017534,2]
[359122822,1745718644672,-400.0,0.00017534,2]
[359122823,1745718644682,-695.64,0.00017534,2]
[359122824,1745718644691,-400.0,0.00017534,2]
[359122825,1745718644701,-400.0,0.00017534,2]
[359122826,1745718644710,-400.0,0.00017534,2]
[359122827,1745718644719,-400.0,0.00017534,2]
[359122828,1745718644729,-400.0,0.00017534,2]
[359122829,1745718644738,-415.16459577,0.00017534,2]
[359122830,1745718644748,-400.0,0.00017534,2]
[359122831,1745718644758,-400.0,0.00017534,2]
[359122832,1745718644767,-415.0,0.00017534,2]
[359122833,1745718644777,-400.0,0.00017534,2]
[359122834,1745718644786,-866.54,0.00017534,2]
[359122835,1745718644796,-1548.88,0.00017534,2]
[359122836,1745718644807,-400.0,0.00017534,2]
[359122837,1745718644816,-400.0,0.00017534,2]
[359122838,1745718644826,-659.79,0.00017534,2]
[359122839,1745718644835,-307.02211367,0.00017808,2]
[359122840,1745718644845,-480.98,0.00017808,2]
[359122841,1745718644855,-400.0,0.00017808,2]
[359122842,1745718644865,-400.0,0.00017808,2]
[359122843,1745718644874,-400.0,0.00017808,2]
[359122844,1745718644884,-460.79132413,0.00017808,2]
[359122845,1745718644896,-288.45743992,0.00017808,2]
[359122846,1745718644911,-510.78804603,0.00017808,2]
[359122847,1745718644920,-400.0,0.00017808,2]
[359122848,1745718644930,-400.0,0.00017808,2]
[359122849,1745718644942,-480.80106485,0.00017808,2]
[359122850,1745718644951,-435.03,0.00017808,2]
[359122851,1745718644961,-483.23573891,0.00017808,2]
[359122852,1745718644971,-400.0,0.00017808,2]
[359122853,1745718644981,-400.0,0.00017808,2]
[359122854,1745718644991,-400.0,0.00017808,2]
[359122855,1745718645000,-623.28,0.00017808,2]
[359122856,1745718645010,-400.0,0.00017808,2]
[359122857,1745718645021,-400.0,0.00017808,2]
[359122858,1745718645030,-513.25339514,0.00017808,2]
[359122859,1745718645040,-400.0,0.00017808,2]
[359122860,1745718645050,-511.94558683,0.00017808,2]
[359122861,1745718645059,-400.0,0.00017808,2]
[359122862,1745718645069,-400.0,0.00017808,2]
[359122863,1745718645078,-536.93,0.00017808,2]
[359122864,1745718645088,-244.2132628,0.00017808,2]
[359122865,1745718645098,-400.0,0.00017808,2]
[359122866,1745718645109,-400.0,0.00017808,2]
[359122867,1745718645119,-400.0,0.00017808,2]
[359122868,1745718645128,-400.0,0.00017808,2]
[359122869,1745718645138,-400.0,0.00017808,2]
[359122870,1745718645148,-400.0,0.00017808,2]
[359122871,1745718645158,-470.51459854,0.00017808,2]
[359122872,1745718645168,-695.64,0.00017808,2]
[359122873,1745718645178,-400.0,0.00017808,2]
[359122874,1745718645188,-400.0,0.00017808,2]
[359122875,1745718645197,-400.0,0.00017808,2]
[359122876,1745718645207,-400.0,0.00017808,2]
[359122877,1745718645218,-510.16425741,0.00017808,2]
[359122878,1745718645228,-400.0,0.00017808,2]
[359122879,1745718645239,-411.53697702,0.00017808,2]
[359122880,1745718645249,-415.0,0.00017808,2]
[359122881,1745718645259,-400.0,0.00017808,2]
[359122882,1745718645270,-866.54,0.00017808,2]
[359122883,1745718645279,-1548.88,0.00017808,2]
[359122884,1745718645289,-400.0,0.00017808,2]
[359122885,1745718645299,-488.0078335,0.00017808,2]
[359122886,1745718645308,-659.79,0.00017808,2]
[359122887,1745718645318,-190.76244039,0.00017845,2]
[359122888,1745718645329,-480.98,0.00018082,2]
[359122889,1745718645339,-400.0,0.00018082,2]
[359122890,1745718645349,-400.0,0.00018082,2]
[359122891,1745718645360,-400.0,0.00018082,2]
[359122892,1745718645371,-400.0,0.00018082,2]
[359122893,1745718645382,-400.0,0.00018082,2]
[359122894,1745718645391,-435.03,0.00018082,2]
[359122895,1745718645401,-217.95542369,0.00018082,2]
[359122896,1745718645411,-400.0,0.00018082,2]
[359122897,1745718645420,-400.0,0.00018082,2]
[359122898,1745718645431,-623.28,0.00018082,2]
[359122899,1745718645441,-400.0,0.00018082,2]
[359122900,1745718645450,-400.0,0.00018082,2]
[359122901,1745718645460,-400.0,0.00018082,2]
[359122902,1745718645471,-400.0,0.00018082,2]
[359122903,1745718645481,-400.0,0.00018082,2]
[359122904,1745718645491,-536.93,0.00018082,2]
[359122905,1745718645502,-245.51599647,0.00018082,2]
[359122906,1745718645511,-400.0,0.00018082,2]
[359122907,1745718645521,-400.0,0.00018082,2]
[359122908,1745718645532,-400.0,0.00018082,2]
[359122909,1745718645542,-400.0,0.00018082,2]
[359122910,1745718645551,-418.41596373,0.00018082,2]
[359122911,1745718645562,-695.64,0.00018082,2]
[359122912,1745718645573,-400.0,0.00018082,2]
[359122913,1745718645582,-400.0,0.00018082,2]
[359122914,1745718645591,-400.0,0.00018082,2]
[359122915,1745718645603,-400.0,0.00018082,2]
[359122916,1745718645613,-400.0,0.00018082,2]
[359122917,1745718645622,-415.0,0.00018082,2]
[359122918,1745718645632,-400.0,0.00018082,2]
[359122919,1745718645642,-866.54,0.00018082,2]
[359122920,1745718645651,-1548.88,0.00018082,2]
[359122921,1745718645661,-400.0,0.00018082,2]
[359122922,1745718645671,-659.79,0.00018082,2]
[359122923,1745718645682,-480.98,0.00018356,2]
[359122924,1745718645692,-400.0,0.00018356,2]
[359122925,1745718645701,-400.0,0.00018356,2]
[359122926,1745718645711,-400.0,0.00018356,2]
[359122927,1745718645721,-400.0,0.00018356,2]
[359122928,1745718645731,-350.41391131,0.00018356,2]
[359122929,1745718645740,-435.03,0.00018356,2]
[359122930,1745718645749,-400.0,0.00018356,2]
[359122931,1745718645759,-400.0,0.00018356,2]
[359122932,1745718645769,-623.28,0.00018356,2]
[359122933,1745718645779,-218.24697394,0.00018356,2]
[359122934,1745718645788,-400.0,0.00018356,2]
[359122935,1745718645798,-400.0,0.00018356,2]
[359122936,1745718645808,-400.0,0.00018356,2]
[359122937,1745718645820,-400.0,0.00018356,2]
[359122938,1745718645830,-536.93,0.00018356,2]
[359122939,1745718645839,-544.76841862,0.00018356,2]
[359122940,1745718645850,-400.0,0.00018356,2]
[359122942,1745718645861,-319.64586808,0.00018356,2]
[359122944,1745718645870,-311.29793106,0.00018356,2]
[359122946,1745718645880,-695.64,0.00018356,2]
[359122947,1745718645890,-400.0,0.00018356,2]
[359122948,1745718645904,-400.0,0.00018356,2]
[359122949,1745718645916,-400.0,0.00018356,2]
[359122950,1745718645927,-400.0,0.00018356,2]
[359122951,1745718645937,-400.0,0.00018356,2]
[359122952,1745718645947,-415.0,0.00018356,2]
[359122953,1745718645956,-400.0,0.00018356,2]
[359122954,1745718645966,-866.54,0.00018356,2]
[359122955,1745718645978,-1548.88,0.00018356,2]
[359122956,1745718645988,-400.0,0.00018356,2]
[359122957,1745718645999,-659.79,0.00018356,2]
[359122958,1745718646009,-480.98,0.0001863,2]
[359122959,1745718646019,-400.0,0.0001863,2]
[359122960,1745718646028,-333.77275775,0.0001863,2]
[359122962,1745718646038,-400.0,0.0001863,2]
[359122964,1745718646047,-400.0,0.0001863,2]
[359122965,1745718646057,-435.03,0.0001863,2]
[359122966,1745718646066,-400.0,0.0001863,2]
[359122967,1745718646077,-418.28401252,0.0001863,2]
[359122968,1745718646087,-623.28,0.0001863,2]
[359122969,1745718646097,-400.0,0.0001863,2]
[359122970,1745718646108,-400.0,0.0001863,2]
[359122971,1745718646120,-400.0,0.0001863,2]
[359122972,1745718646130,-431.78627572,0.0001863,2]
[359122973,1745718646141,-536.93,0.0001863,2]
[359122974,1745718646151,-400.0,0.0001863,2]
[359122975,1745718646161,-695.64,0.0001863,2]
[359122976,1745718646171,-400.0,0.0001863,2]
[359122977,1745718646181,-400.0,0.0001863,2]
[359122978,1745718646192,-426.60098604,0.0001863,2]
[359122979,1745718646202,-400.0,0.0001863,2]
[359122980,1745718646212,-273.77927549,0.0001863,2]
[359122981,1745718646222,-415.0,0.0001863,2]
[359122982,1745718646232,-400.0,0.0001863,2]
[359122983,1745718646242,-866.54,0.0001863,2]
[359122984,1745718646252,-1548.88,0.0001863,2]
[359122985,1745718646264,-400.0,0.0001863,2]
[359122986,1745718646274,-480.98,0.00018904,2]
[359122987,1745718646284,-400.0,0.00018904,2]
[359122988,1745718646294,-400.0,0.00018904,2]
[359122989,1745718646304,-400.0,0.00018904,2]
[359122990,1745718646314,-435.03,0.00018904,2]
[359122991,1745718646323,-400.0,0.00018904,2]
[359122992,1745718646333,-623.28,0.00018904,2]
[359122993,1745718646343,-400.0,0.00018904,2]
[359122994,1745718646353,-404.20532692,0.00018904,2]
[359123016,1745718646639,-78.0743488,0.00018904,2]
[359123018,1745718646649,-400.64700028,0.00018904,2]
[359123020,1745718646659,-536.93,0.00018904,2]
[359123021,1745718646668,-400.0,0.00018904,2]
[359123023,1745718646678,-695.64,0.00018904,2]
[359123025,1745718646689,-400.0,0.00018904,2]
[359123027,1745718646698,-400.0,0.00018904,2]
[359123029,1745718646708,-400.0,0.00018904,2]
[359123031,1745718646719,-415.0,0.00018904,2]
[359123033,1745718646730,-176.29788666,0.00018904,2]
[359123035,1745718646739,-866.54,0.00018904,2]
[359123037,1745718646749,-1548.88,0.00018904,2]
[359123039,1745718646759,-400.0,0.00018904,2]
[359123041,1745718646769,-500.0,0.00018973,2]
[359123042,1745718646779,-500.0,0.00018973,2]
[359123044,1745718646789,-20544.51801639,0.00019,2]
[359123047,1745718646802,-15074.56858948,0.00019,2]
[359123049,1745718646814,-399.82719863,0.00019,2]
[359123056,1745718646876,-482.02195921,0.0001863,2]
[359123058,1745718646889,-177.76804079,0.0001863,2]
[359123060,1745718646902,-659.79,0.00018904,2]
[359123062,1745718646912,-1786.90006037,0.00019,2]
[359123065,1745718646924,-1835.73340867,0.00019,2]
[359123067,1745718646936,-26041.22937239,0.00019,2]
[359123069,1745718646946,-480.98,0.00019178,2]
[359123071,1745718646956,-400.0,0.00019178,2]
[359123073,1745718646965,-400.0,0.00019178,2]
[359123075,1745718646976,-400.0,0.00019178,2]
[359123077,1745718646986,-435.03,0.00019178,2]
[359123079,1745718646995,-400.0,0.00019178,2]
[359123080,1745718647006,-623.28,0.00019178,2]
[359123082,1745718647015,-400.0,0.00019178,2]
[359123084,1745718647025,-536.93,0.00019178,2]
[359123086,1745718647035,-400.0,0.00019178,2]
[359123088,1745718647045,-695.64,0.00019178,2]
[359123090,1745718647054,-400.0,0.00019178,2]
[359123092,1745718647064,-319.46029984,0.00019178,2]
[359123094,1745718647074,-400.0,0.00019178,2]
[359123096,1745718647084,-415.0,0.00019178,2]
[359123098,1745718647094,-866.54,0.00019178,2]
[359123100,1745718647103,-1548.88,0.00019178,2]
[359123102,1745718647113,-400.0,0.00019178,2]
[359123104,1745718647123,-659.79,0.00019178,2]
[359123105,1745718647133,-300.0,0.00019178,2]
[359123106,1745718647144,-180.1909537,0.00019283,2]
[359123108,1745718647153,-190.76244039,0.00019352,2]
[359123110,1745718647163,-480.98,0.00019452,2]
[359123112,1745718647175,-404.65,0.00019452,2]
[359123114,1745718647185,-400.0,0.00019452,2]
[359123116,1745718647194,-400.0,0.00019452,2]
[359123118,1745718647205,-435.03,0.00019452,2]
[359123120,1745718647214,-536.314355,0.00019452,2]
[359123122,1745718647223,-623.28,0.00019452,2]
[359123124,1745718647233,-400.0,0.00019452,2]
[359123126,1745718647242,-536.93,0.00019452,2]
[359123128,1745718647252,-400.0,0.00019452,2]
[359123130,1745718647262,-695.64,0.00019452,2]
[359123132,1745718647272,-400.0,0.00019452,2]
[359123134,1745718647282,-400.0,0.00019452,2]
[359123136,1745718647291,-415.0,0.00019452,2]
[359123138,1745718647301,-866.54,0.00019452,2]
[359123140,1745718647311,-1548.88,0.00019452,2]
[359123142,1745718647320,-400.0,0.00019452,2]
[359123144,1745718647330,-659.79,0.00019452,2]
[359123146,1745718647339,-259.3726047,0.00019681,2]
[359123148,1745718647349,-480.98,0.00019726,2]
[359123150,1745718647360,-400.0,0.00019726,2]
[359123152,1745718647369,-400.0,0.00019726,2]
[359123154,1745718647380,-435.03,0.00019726,2]
[359123156,1745718647390,-623.28,0.00019726,2]
[359123158,1745718647399,-400.0,0.00019726,2]
[359123160,1745718647409,-536.93,0.00019726,2]
[359123162,1745718647418,-400.0,0.00019726,2]
[359123164,1745718647428,-695.64,0.00019726,2]
[359123166,1745718647439,-400.0,0.00019726,2]
[359123168,1745718647450,-400.0,0.00019726,2]
[359123170,1745718647460,-415.0,0.00019726,2]
[359123171,1745718647469,-866.54,0.00019726,2]
[359123173,1745718647480,-1548.88,0.00019726,2]
[359123175,1745718647490,-459.04541272,0.00019726,2]
[359123177,1745718647499,-659.79,0.00019726,2]
[359123179,1745718647509,-254.34122159,0.00019973,2]
[359123180,1745718647518,-500.74041479,0.00019973,2]
[359123181,1745718647529,-244.30903459,0.00019973,2]
[359123183,1745718647538,-500.0,0.00019973,2]
[359123186,1745718647559,-500.0,0.00019973,2]
[359123188,1745718647571,-2902.7864716,0.00019999,2]
[359123190,1745718647582,-19566.39996211,0.00019999,3]
[359123192,1745718647591,-160.0,0.0002,3]
[359123194,1745718647603,-12582.09293779,0.0002,3]
[359123197,1745718647613,-840.35238838,0.0002,3]
[359123199,1745718647624,-2000.0,0.0002,4]
[359123201,1745718647634,-3788.39011308,0.0002,2]
[359123205,1745718647668,-1070.11454301,0.0002,2]
[359123207,1745718647681,-791.3323053,0.0002,2]
[359123209,1745718647693,-444.18705597,0.0002,2]
[359123212,1745718647706,-760.70198306,0.0002,2]
[359123222,1745718647801,-400.0,0.00016438,2]
[359123224,1745718647811,-400.0,0.00016438,2]
[359123226,1745718647822,-47.92286168,0.00016438,2]
[359123229,1745718647834,-427.04713832,0.00016438,2]
[359123231,1745718647844,-217.90739539,0.00016712,2]
[359123233,1745718647857,-182.09260461,0.00016712,2]
[359123235,1745718647867,-400.0,0.00016712,2]
[359123237,1745718647877,-16665.16171992,0.0002,2]
[359123239,1745718647890,-40536.40965209,0.0002,2]
[359123241,1745718647904,-17208.29329976,0.0002,2]
[359123243,1745718647915,-2470.0,0.0002,2]
[359123246,1745718647925,-480.98,0.0002,2]
[359123248,1745718647935,-400.0,0.0002,2]
[359123250,1745718647945,-151.620619,0.0002,2]
[359123252,1745718647955,-151.0,0.0002,2]
[359123254,1745718647964,-151.0,0.0002,2]
[359123256,1745718647974,-151.0,0.0002,2]
[359123259,1745718647996,-400.0,0.0002,2]
[359123261,1745718648013,-160.0,0.0002,3]
[359123264,1745718648029,-435.03,0.0002,2]
[359123266,1745718648044,-623.28,0.0002,2]
[359123269,1745718648056,-1018.564492,0.0002,2]
[359123271,1745718648069,-400.0,0.0002,2]
[359123273,1745718648084,-1018.564492,0.0002,2]
[359123276,1745718648100,-536.93,0.0002,2]
[359123278,1745718648114,-153.840891,0.0002,2]
[359123280,1745718648128,-400.0,0.0002,2]
[359123282,1745718648142,-173.147689,0.0002,2]
[359123283,1745718648162,-173.147689,0.0002,2]
[359123303,1745718648385,-695.64,0.0002,2]
[359123305,1745718648401,-400.0,0.0002,2]
[359123308,1745718648415,-400.0,0.0002,2]
[359123310,1745718648429,-415.0,0.0002,2]
[359123313,1745718648443,-866.54,0.0002,2]
[359123315,1745718648456,-1548.88,0.0002,2]
[359123318,1745718648471,-659.79,0.0002,2]
[359123320,1745718648488,-900.0,0.00020068,2]
[359123323,1745718648503,-250.45911058,0.00020139,2]
[359123325,1745718648518,-480.98,0.00020273,2]
[359123328,1745718648532,-151.0,0.00020273,2]
[359123330,1745718648547,-154.876658,0.00020273,2]
[359123333,1745718648560,-157.771408,0.00020273,2]
[359123335,1745718648572,-400.0,0.00020273,2]